fUSD/lending_fUSD_20240607
["ID","MTS","AMOUNT","RATE_DAILY","PERIOD"]
[328749710,1717764645179,-542.10008343,0.00029863,4]
[328749711,1717764645188,-542.29,0.00029863,4]
[328749712,1717764645198,-506.78332874,0.00029863,4]
[328749713,1717764645209,-2382.86,0.00029863,4]
[328749714,1717764645219,-2382.86,0.00029863,4]
[328749715,1717764645229,-2382.86,0.00029863,4]
[328749716,1717764645493,-500.0,0.00029863,4]
[328749717,1717764645510,-500.0,0.00029863,4]
[328749718,1717764645523,-2382.86,0.00029863,4]
[328749719,1717764645532,-2382.86,0.00029863,4]
[328749720,1717764645541,-500.0,0.00029863,4]
[328749721,1717764645550,-500.0,0.00029863,4]
[328749722,1717764645560,-500.0,0.00029863,4]
[328749723,1717764645569,-500.0,0.00029863,4]
[328749724,1717764645579,-500.0,0.00029863,4]
[328749725,1717764645590,-500.0,0.00029863,4]
[328749726,1717764645599,-500.0,0.00029863,4]
[328749727,1717764645609,-517.37773241,0.00029863,4]
[328749728,1717764645619,-2454.61,0.00029863,4]
[328749729,1717764645629,-2454.61,0.00029863,4]
[328749730,1717764645638,-2454.61,0.00029863,4]
[328749731,1717764645647,-2454.61,0.00029863,4]
[328749732,1717764645657,-500.0,0.00029863,4]
[328749733,1717764645666,-516.49646093,0.00029863,4]
[328749734,1717764645676,-1563.59,0.00029863,4]
[328749735,1717764645685,-1563.59,0.00029863,4]
[328749736,1717764645694,-1563.59,0.00029863,4]
[328749737,1717764645703,-1563.59,0.00029863,4]
[328749738,1717764645713,-500.0,0.00029863,4]
[328749739,1717764645722,-1563.59,0.00029863,4]
[328749740,1717764645731,-500.0,0.00029863,4]
[328749741,1717764645743,-500.0,0.00029863,4]
[328749743,1717764645753,-2514.2,0.00029863,4]
[328749745,1717764645763,-2514.2,0.00029863,4]
[328749746,1717764645772,-2514.2,0.00029863,4]
[328749748,1717764645781,-2514.2,0.00029863,4]
[328749750,1717764645792,-500.0,0.00029863,4]
[328749752,1717764645802,-500.0,0.00029863,4]
[328749754,1717764645811,-500.0,0.00029863,4]
[328749755,1717764645821,-525.13,0.00029863,4]
[328749756,1717764645831,-500.0,0.00029863,4]
[328749757,1717764645840,-500.0,0.00029863,4]
[328749758,1717764645849,-664.38,0.00029863,4]
[328749759,1717764645859,-664.38,0.00029863,4]
[328749760,1717764645868,-664.38,0.00029863,4]
[328749761,1717764645880,-664.38,0.00029863,4]
[328749762,1717764645891,-664.38,0.00029863,4]
[328749763,1717764645901,-295.96894835,0.00029863,4]
[328749764,1717764645910,-2177.05,0.00029863,4]
[328749765,1717764645922,-2177.05,0.00029863,4]
[328749766,1717764645932,-2177.05,0.00029863,4]
[328749767,1717764645941,-2177.05,0.00029863,4]
[328749768,1717764645951,-507.13934541,0.00029863,4]
[328749769,1717764645963,-500.0,0.00029863,4]
[328749770,1717764645973,-500.0,0.00029863,4]
[328749771,1717764645983,-207.06807113,0.00029863,4]
[328749772,1717764645992,-512.72948556,0.00029863,4]
[328749773,1717764646002,-500.0,0.00029863,4]
[328749774,1717764646011,-500.0,0.00029863,4]
[328749775,1717764646021,-500.0,0.00029863,4]
[328749776,1717764646031,-380.62747238,0.00029863,4]
[328749777,1717764646040,-500.0,0.00029863,4]
[328749778,1717764646050,-500.0,0.00029863,4]
[328749779,1717764646060,-500.0,0.00029863,4]
[328749780,1717764646069,-529.22360211,0.00029863,4]
[328749781,1717764646079,-1766.96,0.00029863,4]
[328749782,1717764646088,-1766.96,0.00029863,4]
[328749783,1717764646098,-1766.96,0.00029863,4]
[328749784,1717764646107,-1766.96,0.00029863,4]
[328749785,1717764646117,-1766.96,0.00029863,4]
[328749786,1717764646126,-520.93509281,0.00029863,4]
[328749787,1717764646138,-500.0,0.00029863,4]
[328749788,1717764646147,-500.0,0.00029863,4]
[328749789,1717764646156,-500.0,0.00029863,4]
[328749790,1717764646166,-500.0,0.00029863,4]
[328749791,1717764646175,-500.0,0.00029863,4]
[328749792,1717764646185,-500.0,0.00029863,4]
[328749793,1717764646194,-500.0,0.00029863,4]
[328749794,1717764646204,-500.0,0.00029863,4]
[328749795,1717764646214,-500.0,0.00029863,4]
[328749796,1717764646223,-500.0,0.00029863,4]
[328749797,1717764646232,-523.04169489,0.00029863,4]
[328749798,1717764646242,-500.0,0.00029863,4]
[328749799,1717764646251,-500.0,0.00029863,4]
[328749800,1717764646260,-500.0,0.00029863,4]
[328749801,1717764646270,-500.0,0.00029863,4]
[328749802,1717764646279,-500.0,0.00029863,4]
[328749803,1717764646289,-512.94298201,0.00029863,4]
[328749804,1717764646298,-628.05,0.00029863,4]
[328749805,1717764646308,-572.89,0.00029863,4]
[328749806,1717764646318,-500.0,0.00029863,4]
[328749807,1717764646327,-500.0,0.00029863,4]
[328749808,1717764646336,-500.0,0.00029863,4]
[328749809,1717764646345,-500.0,0.00029863,4]
[328749810,1717764646355,-500.0,0.00029863,4]
[328749811,1717764646364,-500.0,0.00029863,4]
[328749812,1717764646373,-500.0,0.00029863,4]
[328749813,1717764646386,-500.0,0.00029863,4]
[328749814,1717764646395,-523.38693232,0.00029863,4]
[328749815,1717764646405,-500.0,0.00029863,4]
[328749816,1717764646414,-500.0,0.00029863,4]
[328749817,1717764646423,-500.0,0.00029863,4]
[328749818,1717764646432,-500.0,0.00029863,4]
[328749819,1717764646442,-500.0,0.00029863,4]
[328749820,1717764646451,-500.0,0.00029863,4]
[328749821,1717764646461,-509.66839292,0.00029863,4]
[328749822,1717764646470,-500.0,0.00029863,4]
[328749823,1717764646480,-500.0,0.00029863,4]
[328749824,1717764646490,-519.45958204,0.00029863,4]
[328749825,1717764646500,-500.0,0.00029863,4]
[328749826,1717764646509,-500.0,0.00029863,4]
[328749827,1717764646519,-500.0,0.00029863,4]
[328749828,1717764646528,-500.0,0.00029863,4]
[328749829,1717764646538,-500.0,0.00029863,4]
[328749830,1717764646547,-500.0,0.00029863,4]
[328749831,1717764646557,-512.11187954,0.00029863,4]
[328749833,1717764646567,-500.0,0.00029863,4]
[328749834,1717764646576,-500.0,0.00029863,4]
[328749836,1717764646586,-500.0,0.00029863,4]
[328749838,1717764646596,-500.0,0.00029863,4]
[328749840,1717764646605,-500.0,0.00029863,4]
[328749842,1717764646615,-324.38589834,0.00029863,4]
[328749844,1717764646624,-500.0,0.00029863,4]
[328749845,1717764646635,-500.0,0.00029863,4]
[328749846,1717764646645,-500.0,0.00029863,4]
[328749847,1717764646655,-528.04747976,0.00029863,4]
[328749848,1717764646664,-500.0,0.00029863,4]
[328749849,1717764646674,-500.0,0.00029863,4]
[328749850,1717764646684,-500.0,0.00029863,4]
[328749851,1717764646694,-500.0,0.00029863,4]
[328749852,1717764646703,-564.9,0.00029863,4]
[328749853,1717764646713,-500.0,0.00029863,4]
[328749855,1717764646723,-515.05309968,0.00029863,4]
[328749856,1717764646732,-374.49987737,0.00029863,4]
[328749857,1717764646742,-500.0,0.00029863,4]
[328749858,1717764646751,-451.92431068,0.00029863,4]
[328749859,1717764646760,-514.82338152,0.00029863,4]
[328749860,1717764646769,-500.0,0.00029865,3]
[328749861,1717764646780,-150.5,0.0002987,15]
[328749862,1717764646789,-1100.0,0.0002987,2]
[328749863,1717764646798,-700.0,0.0002987,2]
[328749864,1717764646808,-700.0,0.0002987,2]
[328749865,1717764646818,-700.0,0.0002987,2]
[328749866,1717764646827,-203.0,0.0002987,2]
[328749867,1717764646837,-700.0,0.0002987,2]
[328749868,1717764646847,-500.0,0.0002987,2]
[328749869,1717764646858,-700.0,0.0002987,2]
[328749870,1717764646868,-1542.06,0.00029872,4]
[328749871,1717764646883,-2053.83,0.00029872,4]
[328749872,1717764646892,-1159.9,0.00029872,4]
[328749874,1717764646902,-500.0,0.00029872,4]
[328749876,1717764646911,-3009.2,0.00029872,4]
[328749877,1717764646922,-2382.86,0.00029872,4]
[328749878,1717764646932,-1563.59,0.00029872,4]
[328749879,1717764646941,-664.38,0.00029872,4]
[328749880,1717764646951,-500.0,0.00029872,4]
[328749881,1717764646963,-4108.61247755,0.00029873,2]
[328749882,1717764647076,-500.0,0.00029863,4]
[328749883,1717764647085,-359.44640036,0.00029873,2]
[328749884,1717764647103,-420.00112209,0.00029873,2]
[328749885,1717764647113,-4834.35,0.00029873,2]
[328749886,1717764647122,-4930.18,0.00029873,2]
[328749887,1717764647133,-4972.4,0.00029873,2]
[328749888,1717764647143,-500.0,0.00029874,3]
[328749889,1717764647152,-242.31264403,0.00029875,2]
[328749890,1717764647162,-5317.2375445,0.00029875,2]
[328749891,1717764647173,-1230.32419121,0.00029875,2]
[328749892,1717764647183,-500.0,0.00029877,4]
[328749893,1717764647193,-500.0,0.00029877,4]
[328749894,1717764647202,-310.9599982,0.00029877,4]
[328749895,1717764647212,-555.18,0.00029877,4]
[328749896,1717764647221,-500.0,0.00029877,4]
[328749897,1717764647230,-2379.16,0.00029877,4]
[328749898,1717764647239,-393.22810608,0.00029877,4]
[328749899,1717764647251,-106.77189392,0.00029877,4]
[328749900,1717764647261,-1133.53,0.00029877,4]
[328749901,1717764647270,-1188.44,0.00029877,4]
[328749902,1717764647279,-522.85,0.00029877,4]
[328749903,1717764647289,-607.24,0.00029877,4]
[328749904,1717764647298,-1104.85,0.00029877,4]
[328749905,1717764647308,-2454.61,0.00029877,4]
[328749906,1717764647317,-2514.2,0.00029877,4]
[328749907,1717764647326,-2177.05,0.00029877,4]
[328749908,1717764647335,-500.0,0.00029877,4]
[328749909,1717764647345,-500.0,0.00029877,4]
[328749910,1717764647354,-283.75,0.00029877,4]
[328749911,1717764647364,-906.08,0.00029878,2]
[328749912,1717764647374,-500.0,0.00029878,2]
[328749913,1717764647384,-500.0,0.00029878,2]
[328749914,1717764647393,-500.0,0.00029878,2]
[328749915,1717764647402,-500.0,0.00029878,3]
[328749916,1717764647412,-150.5,0.0002988,15]
[328749917,1717764647421,-500.0,0.00029882,3]
[328749918,1717764647431,-6547.56173571,0.00029888,2]
[328749919,1717764647440,-150.5,0.0002989,15]
[328749920,1717764647449,-254.49,0.0002989,15]
[328749921,1717764647459,-500.0,0.00029891,3]
[328749922,1717764647468,-164.70568513,0.00029893,2]
[328749923,1717764647477,-163.34669478,0.00029893,2]
[328749924,1717764647486,-201.41816086,0.00029893,2]
[328749925,1717764647495,-203.02004954,0.00029893,2]
[328749926,1717764647505,-156.42488286,0.00029893,2]
[328749927,1717764647515,-201.41816084,0.00029897,2]
[328749928,1717764647524,-203.02004954,0.00029897,2]
[328749929,1717764647534,-690.93,0.00029898,4]
[328749930,1717764647544,-985.3,0.00029898,4]
[328749931,1717764647553,-579.46,0.00029898,4]
[328749932,1717764647563,-530.48,0.00029898,4]
[328749933,1717764647572,-9969.1,0.00029898,4]
[328749934,1717764647582,-4385.46,0.00029898,4]
[328749935,1717764647592,-1725.1,0.00029898,4]
[328749936,1717764647601,-4806.17,0.00029898,4]
[328749937,1717764647611,-500.0,0.00029898,4]
[328749938,1717764647620,-1766.96,0.00029898,4]
[328749939,1717764647631,-500.0,0.00029898,4]
[328749940,1717764647640,-13846.55047256,0.00029899,2]
[328749941,1717764647649,-500.0,0.00029899,4]
[328749942,1717764647658,-500.0,0.00029899,4]
[328749943,1717764647669,-241.57102403,0.00029899,4]
[328749944,1717764647679,-500.0,0.00029899,4]
[328749945,1717764647689,-690.93,0.00029899,4]
[328749946,1717764647698,-555.18,0.00029899,4]
[328749947,1717764647708,-985.3,0.00029899,4]
[328749948,1717764647718,-500.0,0.00029899,4]
[328749949,1717764647727,-2379.16,0.00029899,4]
[328749950,1717764647737,-338.2,0.00029899,4]
[328749951,1717764647747,-500.0,0.00029899,4]
[328749952,1717764647756,-579.46,0.00029899,4]
[328749953,1717764647766,-1133.53,0.00029899,4]
[328749954,1717764647775,-530.48,0.00029899,4]
[328749955,1717764647785,-9969.1,0.00029899,4]
[328749956,1717764647795,-1188.44,0.00029899,4]
[328749957,1717764647804,-4385.46,0.00029899,4]
[328749958,1717764647814,-1725.1,0.00029899,4]
[328749959,1717764647823,-1542.06,0.00029899,4]
[328749960,1717764647834,-4806.17,0.00029899,4]
[328749961,1717764647844,-2053.83,0.00029899,4]
[328749962,1717764647853,-1159.9,0.00029899,4]
[328749963,1717764647864,-522.85,0.00029899,4]
[328749964,1717764647874,-607.24,0.00029899,4]
[328749965,1717764647888,-500.0,0.00029899,4]
[328749966,1717764647898,-1104.85,0.00029899,4]
[328749967,1717764647908,-3009.2,0.00029899,4]
[328749968,1717764647919,-2382.86,0.00029899,4]
[328749969,1717764647929,-500.0,0.00029899,4]
[328749970,1717764647938,-2454.61,0.00029899,4]
[328749971,1717764647948,-1563.59,0.00029899,4]
[328749972,1717764647961,-2514.2,0.00029899,4]
[328749973,1717764647970,-664.38,0.00029899,4]
[328749974,1717764647980,-2177.05,0.00029899,4]
[328749975,1717764647989,-278.6168,0.00029899,4]
[328749976,1717764647999,-1766.96,0.00029899,4]
[328749977,1717764648009,-500.0,0.00029899,4]
[328749978,1717764648018,-500.0,0.00029899,4]
[328749979,1717764648028,-500.0,0.00029899,4]
[328749980,1717764648037,-29703.03425791,0.000299,2]
[328749981,1717764648047,-14566.0,0.000299,2]
[328749982,1717764648057,-152.85,0.000299,7]
[328749983,1717764648066,-151.98,0.000299,7]
[328749984,1717764648076,-500.0,0.000299,2]
[328749985,1717764648085,-17232.909731,0.000299,7]
[328749986,1717764648095,-155.31355062,0.000299,2]
[328749987,1717764648105,-157.54,0.000299,7]
[328749988,1717764648114,-18660.30651756,0.000299,3]
[328749989,1717764648124,-500.0,0.000299,3]
[328749990,1717764648135,-12698.95159198,0.000299,3]
[328749991,1717764648145,-299.73915436,0.000299,3]
[328749992,1717764648154,-120884.15471754,0.000299,2]
[328749993,1717764648167,-79335.84528246,0.000299,2]
[328749994,1717764648177,-1395.52842459,0.000299,15]
[328749995,1717764648186,-6547.56173571,0.000299,2]
[328749996,1717764648196,-165.34,0.000299,7]
[328749997,1717764648205,-248.89325183,0.000299,15]
[328749998,1717764648215,-201.41816084,0.000299,2]
[328749999,1717764648224,-203.02004954,0.000299,2]
[328750000,1717764648234,-673.55133939,0.000299,2]
[328750001,1717764648243,-157.96364331,0.00029904,2]
[328750002,1717764648252,-166.66666666,0.00029971,2]
[328750003,1717764648262,-285.52,0.00029989,15]
[328750004,1717764648272,-272.5646983,0.0002999,7]
[328750005,1717764648282,-331.95370681,0.00029991,2]
[328750006,1717764648292,-251.50742474,0.00029991,2]
[328750007,1717764648301,-1542.06,0.00029991,4]
[328750008,1717764648311,-2053.83,0.00029991,4]
[328750009,1717764648320,-1159.9,0.00029991,4]
[328750010,1717764648330,-500.0,0.00029991,4]
[328750011,1717764648339,-3009.2,0.00029991,4]
[328750012,1717764648349,-2382.86,0.00029991,4]
[328750013,1717764648358,-1563.59,0.00029991,4]
[328750014,1717764648367,-664.38,0.00029991,4]
[328750015,1717764648377,-277893.91851951,0.00029992,13]
[328750016,1717764648390,-35315.82358329,0.00029992,13]
[328750017,1717764648402,-7098.4,0.00029992,13]
[328750018,1717764648413,-16665.70817066,0.00029992,13]
[328750019,1717764648424,-13432.57127763,0.00029992,13]
[328750020,1717764648435,-909.50372096,0.00029992,13]
[328750021,1717764648447,-59483.51,0.00029992,13]
[328750022,1717764648459,-451.22592,0.00029992,13]
[328750023,1717764648471,-671.80019193,0.00029992,13]
[328750024,1717764648491,-156.42488285,0.000299,2]
[328750025,1717764648500,-265.92511715,0.00029992,13]
[328750026,1717764648511,-14453.14132,0.00029992,13]
[328750027,1717764648527,-1046.59280064,0.00029992,13]
[328750028,1717764648539,-42430.95738175,0.00029992,13]
[328750029,1717764648550,-15912.999,0.00029992,13]
[328750030,1717764648576,-7748.07210188,0.00029992,13]
[328750031,1717764648587,-500.32600203,0.00029992,13]
[328750032,1717764648731,-4522.17292767,0.00029992,13]
[328750033,1717764648743,-13303.8873327,0.00029992,13]
[328750034,1717764648782,-420602.93347718,0.00029992,13]
[328750035,1717764648793,-283.17743568,0.00029992,13]
[328750036,1717764648809,-14206.99999999,0.00029992,13]
[328750037,1717764648926,-31311.50816394,0.00029992,13]
[328750038,1717764648937,-3557.4507,0.00029992,13]
[328750039,1717764648950,-4478.93659049,0.00029992,13]
[328750040,1717764648962,-2995.03421921,0.00029992,13]
[328750041,1717764648973,-8701.76026018,0.00029992,13]
[328750042,1717764648984,-3272.04424175,0.00029992,13]
[328750043,1717764648996,-1079.3691492,0.00029992,13]
[328750044,1717764649007,-9968.60391656,0.00029992,13]
[328750045,1717764649018,-1600.25245192,0.00029992,13]
[328750046,1717764649030,-3453.0996774,0.00029992,13]
[328750047,1717764649043,-9082.93475297,0.00029992,13]
[328750048,1717764649055,-6007.94649278,0.00029992,13]
[328750049,1717764649066,-1470.25528145,0.00029992,13]
[328750050,1717764649078,-312.08663015,0.00029992,13]
[328750051,1717764649090,-1343.82485612,0.00029992,13]
[328750052,1717764649101,-60623.49087978,0.00029992,13]
[328750053,1717764649214,-3012.67874961,0.0002836,2]
[328750054,1717764649224,-42347.32125269,0.00029992,13]
[328750055,1717764649236,-3945.54184541,0.00029992,13]
[328750056,1717764649248,-7584.0,0.00029992,13]
[328750057,1717764649259,-936.97752406,0.00029992,13]
[328750058,1717764649270,-14454.9344088,0.00029992,13]
[328750059,1717764649285,-192517.95282661,0.00029992,13]
[328750060,1717764649295,-516.22994918,0.00029992,4]
[328750061,1717764649307,-38.95005082,0.00029992,4]
[328750062,1717764649316,-2379.16,0.00029992,4]
[328750063,1717764649326,-500.0,0.00029992,4]
[328750064,1717764649336,-297.41096819,0.00029992,2]
[328750065,1717764649345,-1133.53,0.00029992,4]
[328750066,1717764649355,-1188.44,0.00029992,4]
[328750067,1717764649364,-1542.06,0.00029992,4]
[328750068,1717764649374,-1542.06,0.00029992,4]
[328750069,1717764649385,-1542.06,0.00029992,4]
[328750070,1717764649396,-1542.06,0.00029992,4]
[328750071,1717764649406,-1542.06,0.00029992,4]
[328750072,1717764649416,-1542.06,0.00029992,4]
[328750073,1717764649425,-1542.06,0.00029992,4]
[328750074,1717764649435,-2053.83,0.00029992,4]
[328750075,1717764649445,-2053.83,0.00029992,4]
[328750076,1717764649454,-858.61852781,0.00029992,4]
[328750077,1717764649466,-964.33286795,0.00029992,4]
[328750078,1717764649478,-230.87860424,0.00029992,4]
[328750079,1717764649488,-1545.24639576,0.00029992,4]
[328750080,1717764649500,-508.58360424,0.00029992,4]
[328750081,1717764649510,-39.25816003,0.00029992,4]
[328750082,1717764649522,-2014.57183997,0.00029992,4]
[328750083,1717764649532,-2053.83,0.00029992,4]
[328750084,1717764649541,-2053.83,0.00029992,4]
[328750085,1717764649551,-1159.9,0.00029992,4]
[328750086,1717764649560,-1159.9,0.00029992,4]
[328750087,1717764649570,-1159.9,0.00029992,4]
[328750088,1717764649580,-1159.9,0.00029992,4]
[328750089,1717764649590,-1159.9,0.00029992,4]
[328750090,1717764649600,-522.85,0.00029992,4]
[328750091,1717764649609,-1159.9,0.00029992,4]
[328750092,1717764649618,-1159.9,0.00029992,4]
[328750093,1717764649627,-607.24,0.00029992,4]
[328750094,1717764649638,-500.0,0.00029992,4]
[328750095,1717764649648,-500.0,0.00029992,4]
[328750096,1717764649657,-500.0,0.00029992,4]
[328750097,1717764649667,-500.0,0.00029992,4]
[328750098,1717764649676,-500.0,0.00029992,4]
[328750099,1717764649685,-500.0,0.00029992,4]
[328750100,1717764649695,-500.0,0.00029992,4]
[328750101,1717764649704,-144.48339903,0.00029992,4]
[328750102,1717764649720,-960.36660097,0.00029992,4]
[328750103,1717764649730,-3009.2,0.00029992,4]
[328750104,1717764649740,-3009.2,0.00029992,4]
[328750105,1717764649750,-3009.2,0.00029992,4]
[328750106,1717764649759,-3009.2,0.00029992,4]
[328750107,1717764649769,-1215.83339903,0.00029992,4]
[328750108,1717764649780,-1793.36660097,0.00029992,4]
[328750109,1717764649790,-3009.2,0.00029992,4]
[328750110,1717764649799,-3009.2,0.00029992,4]
[328750111,1717764649809,-2382.86,0.00029992,4]
[328750112,1717764649819,-1469.37339903,0.00029992,4]
[328750113,1717764649830,-985.23660097,0.00029992,4]
[328750114,1717764649839,-1563.59,0.00029992,4]
[328750115,1717764649849,-1563.59,0.00029992,4]
[328750116,1717764649859,-1563.59,0.00029992,4]
[328750117,1717764649868,-339.91754956,0.00029992,4]
[328750118,1717764649882,-1223.67245044,0.00029992,4]
[328750119,1717764649891,-1563.59,0.00029992,4]
[328750120,1717764649900,-1563.59,0.00029992,4]
[328750121,1717764649912,-1563.59,0.00029992,4]
[328750122,1717764649922,-2514.2,0.00029992,4]
[328750123,1717764649931,-664.38,0.00029992,4]
[328750124,1717764649940,-664.38,0.00029992,4]
[328750125,1717764649950,-664.38,0.00029992,4]
[328750126,1717764649962,-664.38,0.00029992,4]
[328750127,1717764649971,-664.38,0.00029992,4]
[328750128,1717764649981,-664.38,0.00029992,4]
[328750129,1717764649990,-664.38,0.00029992,4]
[328750130,1717764650000,-2177.05,0.00029992,4]
[328750131,1717764650009,-500.0,0.00029992,4]
[328750132,1717764650019,-500.0,0.00029992,4]
[328750133,1717764650028,-155.85880676,0.00029993,2]
[328750134,1717764650037,-155.0,0.00029993,2]
[328750135,1717764650047,-156.47064893,0.00029993,2]
[328750136,1717764650059,-272.6594891,0.00029993,2]
[328750137,1717764650068,-195.95481856,0.00029993,2]
[328750138,1717764650078,-2309.56445021,0.00029993,2]
[328750139,1717764650087,-325.71492009,0.00029993,2]
[328750140,1717764650096,-500.0,0.00029993,4]
[328750141,1717764650108,-231.64,0.00029993,4]
[328750142,1717764650117,-7895.23178591,0.00029993,4]
[328750143,1717764771743,500.0,0.00015,2]
[328750144,1717764772098,500.0,0.00015,2]
[328750145,1717764772484,796.0,0.00015,2]
[328750146,1717764823581,1049.58549956,0.000147,2]
[328750147,1717764834330,155.0,0.00015,2]
[328750148,1717764856158,233.69166049,0.00015,2]
[328750149,1717765026623,941.84820171,0.00015,2]
[328750153,1717765202689,150.0,0.00015,2]
[328750154,1717765202878,150.0,0.00015,2]
[328750155,1717765203079,150.0,0.00015,2]
[328750156,1717765203281,150.0,0.00015,2]
[328750157,1717765203477,150.0,0.00015,2]
[328750158,1717765205066,150.0,0.00015,2]
[328750159,1717765205363,150.0,0.00015,2]
[328750160,1717765205550,150.0,0.00015,2]
[328750161,1717765205773,150.0,0.00015,2]
[328750162,1717765205963,150.0,0.00015,2]
[328750163,1717765206401,150.0,0.00015,2]
[328750164,1717765206603,150.0,0.00015,2]
[328750165,1717765206801,150.0,0.00015,2]
[328750166,1717765206976,150.0,0.00015,2]
[328750175,1717765622812,-155.0,0.00017086,2]
[328750176,1717765622836,-155.0,0.00017087,2]
[328750177,1717765622859,-155.0,0.00017087,2]
[328750178,1717765622882,-155.0,0.00017088,2]
[328750179,1717765622904,-205.94174335,0.00017088,2]
[328750180,1717765622927,-752.57107997,0.00017088,2]
[328750181,1717765622949,-752.57107997,0.00017088,2]
[328750182,1717765622972,-531.15011943,0.00017089,2]
[328750183,1717765622995,-155.0,0.00017089,2]
[328750184,1717765623018,-163.21533727,0.00017089,2]
[328750185,1717765623040,-345.57209114,0.0001709,2]
[328750186,1717765623062,-155.0,0.0001709,2]
[328750187,1717765623084,-620.85973177,0.0001709,2]
[328750188,1717765623108,-155.0,0.00017091,2]
[328750189,1717765623146,-155.0,0.00017091,2]
[328750190,1717765623171,-155.0,0.00017091,2]
[328750191,1717765623199,-155.0,0.00017094,2]
[328750192,1717765623223,-752.57107997,0.00017094,2]
[328750193,1717765623250,-156.39536925,0.00017102,2]
[328750194,1717765623274,-4040.91575308,0.00017249,2]
[328750195,1717765623299,-469.93,0.00019083,2]
[328750196,1717765623322,-238.82589677,0.00019083,2]
[328750197,1717765626610,155.0,0.00017085,2]
[328750198,1717765650515,50000.0,0.0003,40]
[328750199,1717765749326,-1264.4,0.00017259,2]
[328750200,1717765749350,-1680.8988,0.0002,2]
[328750201,1717765754347,-482.89383249,0.0002,2]
[328750202,1717765758294,-774.0,0.00022,3]
[328750203,1717765758314,-3568.0,0.00022,3]
[328750204,1717765758335,-520.93,0.00023955,2]
[328750205,1717765758359,-274.22,0.00024384,2]
[328750206,1717765758379,-1202.87340608,0.00025,2]
[328750207,1717765758401,-1250.0,0.00025,2]
[328750208,1717765758422,-1276.38374304,0.00025,2]
[328750209,1717765758442,-167.34,0.00025705,2]
[328750210,1717765758463,-167.34,0.00025775,2]
[328750211,1717765758483,-167.34,0.00025846,2]
[328750212,1717765758503,-167.34,0.00025916,2]
[328750213,1717765758523,-340.74,0.00025924,2]
[328750214,1717765758543,-537.57,0.00025924,2]
[328750215,1717765758563,-167.34,0.00025987,2]
[328750216,1717765758586,-167.34,0.00026057,2]
[328750217,1717765758612,-167.34,0.00026128,2]
[328750218,1717765758633,-167.34,0.00026198,2]
[328750219,1717765758653,-517.96,0.00026206,2]
[328750220,1717765758679,-520.93,0.00026219,2]
[328750221,1717765758699,-167.34,0.00026269,2]
[328750222,1717765758914,-167.34,0.00026339,2]
[328750223,1717765758939,-250.0,0.00026375,2]
[328750224,1717765758961,-157.34,0.00026385,2]
[328750225,1717765758981,-250.0,0.00026397,2]
[328750226,1717765759002,-167.34,0.0002641,2]
[328750227,1717765759022,-297.78,0.00026435,2]
[328750228,1717765759042,-167.34,0.0002648,2]
[328750229,1717765759064,-167.34,0.00026551,2]
[328750230,1717765759084,-2055.69464172,0.000266,2]
[328750231,1717765759104,-167.34,0.00026621,2]
[328750232,1717765759130,-167.34,0.00026692,2]
[328750233,1717765759152,-167.34,0.00026762,2]
[328750234,1717765759171,-167.0,0.00026817,2]
[328750235,1717765759191,-167.34,0.00026833,2]